{"text_format":"1","workbook":"xlsx","n_sheets":6,"sheets":["Listina","Kat A","Kat B","Družstva","Kat A out","Kat B out"],"not_rendered":{"charts":0,"images":0,"macros":1,"external_links":0,"defined_names":0,"comments":0,"pivot_tables":0},"unopened":[],"bounds":{"document_bytes":16777216,"sheet_cells":100000,"rows_first":2000,"rows_last":500,"rows_between":2000,"halvings":0,"cell_chars":16384,"cell_head_chars":4096},"cells_cut":0,"cells_raw":0,"read":"whole","date_system":"1900"}

{"sheet":"Listina","index":0,"n_rows":79,"n_cols":9,"rows_kept":79,"cut":false,"hidden":false,"merged":[[19,1,19,5],[38,1,38,5],[57,1,57,5]]}
[]
[]
[null,"p.č.","jméno, příjmení","kat.","družstva","přihlašující organizace",null,"čas - minuty","čas - sekundy"]
[null,"1.","Miroslav Michlovský","A","ÚO Kolín A","HZS Středočeského kraje - ÚO Kolín",null,"00:05:34.500",{"$f":"H4*86400","v":334.5}]
[null,"2.","Michal Mour","B","ÚO Kladno ","HZS Středočeského kraje - ÚO Kladno",null,"00:05:03.410",{"$f":"H5*86400","v":303.40999999999997}]
[null,"3.","Radek Kladiva","A","ÚO Benešov A","HZS Středočeského kraje - ÚO Benešov",null,"00:04:16.480",256.47999999999996]
[null,"4.","Vladimír Tajč","A","ÚO Mělník","HZS Středočeského kraje - ÚO Mělník",null,"00:05:46.390",346.39]
[null,"5.","Michal Strnad","A","ÚO Mladá Boleslav","HZS Středočeského kraje - ÚO Mladá Boleslav",null,"00:05:02.220",302.21999999999997]
[null,"6.","Roman Vávra","A","ÚO Nymburk","HZS Středočeského kraje - ÚO Nymburk",null,"00:06:50.990",410.99]
[null,"7.","Dušan Plodr","A","ÚO Beroun","HZS Středočeského kraje - ÚO Beroun",null,"00:04:36.320",276.32]
[null,"8.","Jan Jeništa","A","ÚO Příbram","HZS Středočeského kraje - ÚO Příbram",null,"00:05:42.430",342.43]
[null,"9.","Jan Lahoda","B","ÚO Kutná Hora","HZS Středočeského kraje - ÚO Kutná Hora",null,"00:06:33.250",393.25000000000006]
[null,"10.","Petr Karpíšek","B","ÚO Kolín B","HZS Středočeského kraje - ÚO Kolín",null,"00:05:32.670",332.67]
[null,"11.","David Sysel","A","ÚO Benešov B","HZS Středočeského kraje - ÚO Benešov",null,"00:05:31.560",331.56]
[null,"12.","Jiří Eisner","A",null,"HZS Středočeského kraje - ÚO Kladno",null,"00:07:56.860",476.85999999999996]
[null,"13.","Jiří Dvořák","B (out)",null,"HZS Jihočeského kraje",null,"00:04:26.340",{"$f":"H16*86400","v":266.33999999999997}]
[null,"14.","Petr Svatek","A (out)",null,"HZS Kraje Vysočina - ÚO Havlíčkův Brod",null,"00:04:17.200",257.20000000000005]
[null,"15.","Jan Marx","A (out)",null,"HZS Kraje Libereckého kraje - ÚO Jablonec n/N",null,"00:05:34.230",334.23]
[null,"16.","Ondřej Pavlík","A (out)",null,"HZS Pardubického kraje - ÚO Pardubice",null,"00:05:01.620",301.62]
[null,"Přestávka"]
[null,"17.","Ondřej Rosenkranz","A (out)",null,"HZS Královéhradeckého kraje - ÚO Hradec Králové",null,"00:03:59.440",239.44000000000003]
[null,"18.","Michal Brousil","A (out)",null,"HZS Jihočeského kraje",null,"00:04:13.260",253.26]
[null,"19.","Martin Zapadlo","A","ÚO Kolín A","HZS Středočeského kraje - ÚO Kolín",null,"00:05:56.250",356.25]
[null,"20.","Tomáš Macák","A","ÚO Kladno ","HZS Středočeského kraje - ÚO Kladno",null,"00:06:27.980",387.98]
[null,"21.","Kamil Němec","B","ÚO Benešov A","HZS Středočeského kraje - ÚO Benešov",null,"00:04:25.490",265.48999999999995]
[null,"22.","Jan Babický","A","ÚO Mělník","HZS Středočeského kraje - ÚO Mělník",null,"00:05:50.890",350.89]
[null,"23.","Milan Dudek","B",null,"HZS Středočeského kraje - ÚO Mladá Boleslav",null,"00:07:06.780",426.78]
[null,"24.","Radek Najbrt","B","ÚO Nymburk","HZS Středočeského kraje - ÚO Nymburk",null,"00:06:54.400",414.4]
[null,"25.","Michal Čepelák","A","ÚO Beroun","HZS Středočeského kraje - ÚO Beroun",null,"00:05:20.040",320.03999999999996]
[null,"26.","Jan Mora","A","ÚO Příbram","HZS Středočeského kraje - ÚO Příbram",null,"00:05:07.570",307.57]
[null,"27.","Petr Klatovský","A","ÚO Kutná Hora","HZS Středočeského kraje - ÚO Kutná Hora",null,"00:08:35.020",515.02]
[null,"28.","Petr Vaněk","A","ÚO Kolín B","HZS Středočeského kraje - ÚO Kolín",null,"00:06:57.040",417.04]
[null,"29.","Miloš Ježek","A","ÚO Benešov B","HZS Středočeského kraje - ÚO Benešov",null,"00:05:46.210",346.21000000000004]
[null,"30.","Oldřich Tomáš Staněk","A","ÚO Kolín C","HZS Středočeského kraje - ÚO Kolín",null,"00:06:55.010",415.01]
[null,"31.","Ondřej Fišer","A (out)",null,"HZS Jihočeského kraje",null,"00:04:49.330",289.33000000000004]
[null,"32.","Zdeněk Tvrdý","A (out)",null,"HZS Kraje Vysočina - ÚO Havlíčkův Brod",null,null,0]
[null,"33.","Jiří Šilhán","A (out)",null,"HZS Kraje Libereckého kraje - ÚO Jablonec n/N",null,"00:05:48.250",348.25000000000006]
[null,"34.","Oldřich Šmatera","B (out)",null,"HZS Pardubického kraje - ÚO Pardubice",null,"00:05:23.130",323.13]
[null,"Přestávka"]
[null,"35.","Michal Pavel","A (out)",null,"HZS Královéhradeckého kraje - ÚO Hradec Králové",null,"00:05:50.810",350.81000000000006]
[null,"36.","Oldřich Stehlík","A (out)",null,"HZS Kraje Vysočina - ÚO Havlíčkův Brod",null,null,0]
[null,"37.","Lukáš Martínek","A","ÚO Kolín A","HZS Středočeského kraje - ÚO Kolín",null,"00:05:08.130",308.13000000000005]
[null,"38.","Michal Kratochvíl","A","ÚO Kladno ","HZS Středočeského kraje - ÚO Kladno",null,"00:06:54.020",414.02000000000004]
[null,"39.","Evžen Holan","A","ÚO Benešov A","HZS Středočeského kraje - ÚO Benešov",null,"00:05:31.540",331.54]
[null,"40.","Petr Povolný","A","ÚO Mělník","HZS Středočeského kraje - ÚO Mělník",null,"00:06:51.010",411.01]
[null,"41.","Petr Holeček","B","ÚO Mladá Boleslav","HZS Středočeského kraje - ÚO Mladá Boleslav",null,"00:06:44.080",404.07999999999993]
[null,"42.","Michal Šimáček","A","ÚO Nymburk","HZS Středočeského kraje - ÚO Nymburk",null,"00:07:23.260",443.26000000000005]
[null,"43.","Michal Chlumský","B","ÚO Beroun","HZS Středočeského kraje - ÚO Beroun",null,"00:05:56.150",356.15]
[null,"44.","Jakub Hornáček","A","ÚO Příbram","HZS Středočeského kraje - ÚO Příbram",null,"00:05:19.730",319.73]
[null,"45.","Miloš Vysloužil","A","ÚO Kutná Hora","HZS Středočeského kraje - ÚO Kutná Hora",null,"00:05:20.340",320.34000000000003]
[null,"46.","Zdeněk Hejduk","A","ÚO Kolín B","HZS Středočeského kraje - ÚO Kolín",null,"00:06:40.480",400.48000000000008]
[null,"47.","Pavel Kmošek","B","ÚO Benešov B","HZS Středočeského kraje - ÚO Benešov",null,"00:06:14.090",374.09]
[null,"48.","Petr Benda","A (out)",null,"HZS Jihočeského kraje",null,"00:04:33.100",273.10000000000002]
[null,"49.","Pavel Kubát","A (out)",null,"HZS Kraje Vysočina - ÚO Havlíčkův Brod",null,null,0]
[null,"50.","Jiří Komárek","A (out)",null,"HZS Kraje Libereckého kraje - ÚO Jablonec n/N",null,"00:05:47.160",347.15999999999997]
[null,"51.","Marek Víšek","A (out)",null,"HZS Pardubického kraje - ÚO Pardubice",null,"00:04:03.850",243.85000000000005]
[null,"52.","Robin Bureš","A (out)",null,"HZS Ústeckého kraje - ÚO Žatec",null,"00:05:26.710",326.70999999999992]
[null,"Přestávka"]
[null,"53.","Martin Drahota","B","ÚO Kolín C","HZS Středočeského kraje - ÚO Kolín",null,"00:06:42.380",402.38]
[null,"54.","Roland Kletečka","A","ÚO Kladno ","HZS Středočeského kraje - ÚO Kladno",null,"00:06:05.290",365.29]
[null,"55.","Jaroslav Chudoba","A","ÚO Mladá Boleslav","HZS Středočeského kraje - ÚO Mladá Boleslav",null,"00:06:06.790",366.78999999999996]
[null,"56.","Martin Koblížek","A","ÚO Mělník","HZS Středočeského kraje - ÚO Mělník",null,"00:08:19.780",499.78]
[null,"57.","Aleš Zima","A","ÚO Mladá Boleslav","HZS Středočeského kraje - ÚO Mladá Boleslav",null,"00:07:06.610",426.61]
[null,"58.","Pavel Beneš","A","ÚO Nymburk","HZS Středočeského kraje - ÚO Nymburk",null,"00:06:14.280",374.28000000000003]
[null,"59.","Miroslav Hrubec","A","ÚO Beroun","HZS Středočeského kraje - ÚO Beroun",null,"00:06:42.200",402.2]
[null,"60.","Jiří Šídlo","A","ÚO Příbram","HZS Středočeského kraje - ÚO Příbram",null,"00:04:59.890",299.89]
[null,"61.","Jan Backa","A","ÚO Kutná Hora","HZS Středočeského kraje - ÚO Kutná Hora",null,"00:05:30.950",330.95]
[null,"62.","Marcel Tanov","B","ÚO Kolín C","HZS Středočeského kraje - ÚO Kolín",null,"00:08:02.810",482.81]
[null,"63.","Luboš Flídr","A (out)",null,"HZS Kraje Vysočina - ÚO Havlíčkův Brod",null,"00:05:36.390",{"$f":"H69*86400","v":336.39000000000004}]
[null,"64.","Jakub Strika","A (out)",null,"HZS Pardubického kraje - ÚO Pardubice",null,"00:06:18.560",{"$f":"H70*86400","v":378.55999999999995}]
[null,"65.","Tomáš Borl","A (out)",null,"HZS podniku Synthos Kralupy, a.s.",null,null,{"$f":"H71*86400","v":0}]
[null,"66.","Petr Pecka","B (out)",null,"HZS Jihočeského kraje",null,"00:05:05.860",{"$f":"H72*86400","v":305.86}]
[null,"67.",null,null,null,null,null,null,{"$f":"H73*86400","v":0}]
[null,"68.",null,null,null,null,null,null,0]
[null,null,null,null,null,null,null,null,{"$f":"H75*86400","v":0}]
[null,null,null,null,null,null,null,null,0]
[null,null,null,null,null,null,null,null,0]
[null,null,null,null,null,null,null,null,0]
[null,null,null,null,null,null,null,null,0]

{"sheet":"Kat A","index":1,"n_rows":37,"n_cols":5,"rows_kept":37,"cut":false,"hidden":false,"merged":[]}
[]
[null,null,"Kategorie A"]
[]
[1,null,"Radek Kladiva",null,{"$f":"Listina!I6","v":256.47999999999996}]
[2,null,"Dušan Plodr",null,{"$f":"Listina!I10","v":276.32}]
[3,null,"Jiří Šídlo",null,{"$f":"Listina!I66","v":299.89}]
[4,null,"Michal Strnad",null,{"$f":"Listina!I8","v":302.21999999999997}]
[5,null,"Jan Mora",null,{"$f":"Listina!I30","v":307.57}]
[6,null,"Lukáš Martínek",null,{"$f":"Listina!I42","v":308.13000000000005}]
[7,null,"Jakub Hornáček",null,{"$f":"Listina!I49","v":319.73}]
[8,null,"Michal Čepelák",null,{"$f":"Listina!I29","v":320.03999999999996}]
[9,null,"Miloš Vysloužil",null,{"$f":"Listina!I50","v":320.34000000000003}]
[10,null,"Jan Backa",null,{"$f":"Listina!I67","v":330.95}]
[11,null,"Evžen Holan",null,{"$f":"Listina!I44","v":331.54}]
[12,null,"David Sysel",null,{"$f":"Listina!I14","v":331.56}]
[13,null,"Miroslav Michlovský",null,{"$f":"Listina!I4","v":334.5}]
[14,null,"Jan Jeništa",null,{"$f":"Listina!I11","v":342.43}]
[15,null,"Miloš Ježek",null,{"$f":"Listina!I33","v":346.21000000000004}]
[16,null,"Vladimír Tajč",null,{"$f":"Listina!I7","v":346.39}]
[17,null,"Jan Babický",null,{"$f":"Listina!I26","v":350.89}]
[18,null,"Martin Zapadlo",null,{"$f":"Listina!I23","v":356.25}]
[19,null,"Roland Kletečka",null,{"$f":"Listina!I60","v":365.29}]
[20,null,"Jaroslav Chudoba",null,{"$f":"Listina!I61","v":366.78999999999996}]
[21,null,"Pavel Beneš",null,{"$f":"Listina!I64","v":374.28000000000003}]
[22,null,"Tomáš Macák",null,{"$f":"Listina!I24","v":387.98}]
[23,null,"Zdeněk Hejduk",null,{"$f":"Listina!I51","v":400.48000000000008}]
[24,null,"Miroslav Hrubec",null,{"$f":"Listina!I65","v":402.2}]
[25,null,"Roman Vávra",null,{"$f":"Listina!I9","v":410.99}]
[26,null,"Petr Povolný",null,{"$f":"Listina!I45","v":411.01}]
[27,null,"Michal Kratochvíl",null,{"$f":"Listina!I43","v":414.02000000000004}]
[28,null,"Oldřich Tomáš Staněk",null,{"$f":"Listina!I34","v":415.01}]
[29,null,"Petr Vaněk",null,{"$f":"Listina!I32","v":417.04}]
[30,null,"Aleš Zima",null,{"$f":"Listina!I63","v":426.61}]
[31,null,"Michal Šimáček",null,{"$f":"Listina!I47","v":443.26000000000005}]
[32,null,"Jiří Eisner",null,{"$f":"Listina!I15","v":476.85999999999996}]
[33,null,"Martin Koblížek",null,{"$f":"Listina!I62","v":499.78}]
[34,null,"Petr Klatovský",null,{"$f":"Listina!I31","v":515.02}]

{"sheet":"Kat B","index":2,"n_rows":14,"n_cols":5,"rows_kept":14,"cut":false,"hidden":false,"merged":[]}
[]
[null,null,"Kategorie B"]
[]
[1,null,"Kamil Němec",null,{"$f":"Listina!I25","v":265.48999999999995}]
[2,null,"Michal Mour",null,{"$f":"Listina!I5","v":303.40999999999997}]
[3,null,"Petr Karpíšek",null,{"$f":"Listina!I13","v":332.67}]
[4,null,"Michal Chlumský",null,{"$f":"Listina!I48","v":356.15}]
[5,null,"Pavel Kmošek",null,{"$f":"Listina!I52","v":374.09}]
[6,null,"Jan Lahoda",null,{"$f":"Listina!I12","v":393.25000000000006}]
[7,null,"Martin Drahota",null,{"$f":"Listina!I59","v":402.38}]
[8,null,"Petr Holeček",null,{"$f":"Listina!I46","v":404.07999999999993}]
[9,null,"Radek Najbrt",null,{"$f":"Listina!I28","v":414.4}]
[10,null,"Milan Dudek",null,{"$f":"Listina!I27","v":426.78}]
[11,null,"Marcel Tanov",null,{"$f":"Listina!I68","v":482.81}]

{"sheet":"Družstva","index":3,"n_rows":82,"n_cols":6,"rows_kept":82,"cut":false,"hidden":false,"merged":[]}
[]
[null,null,"Družstva"]
[]
[null,null,null,"Michal Mour","ÚO Kladno ",{"$f":"Listina!I5","v":303.40999999999997}]
[null,null,null,"Tomáš Macák","ÚO Kladno ",{"$f":"Listina!I24","v":387.98}]
[null,null,null,"Michal Kratochvíl","ÚO Kladno ",{"$f":"Listina!I43","v":414.02000000000004}]
[null,null,{"$f":"SUM(SMALL(F4:F7,{1,2,3}))","v":1056.68},"Roland Kletečka","ÚO Kladno ",{"$f":"Listina!I60","v":365.29}]
[]
[]
[null,null,null,"Radek Kladiva","ÚO Benešov A",{"$f":"Listina!I6","v":256.47999999999996}]
[null,null,null,"Kamil Němec","ÚO Benešov A",{"$f":"Listina!I25","v":265.48999999999995}]
[null,null,{"$f":"SUM(SMALL(F10:F13,{1,2,3}))","v":853.51},"Evžen Holan","ÚO Benešov A",{"$f":"Listina!I44","v":331.54}]
[]
[]
[]
[null,null,null,"Vladimír Tajč","ÚO Mělník",{"$f":"Listina!I7","v":346.39}]
[null,null,null,"Jan Babický","ÚO Mělník",{"$f":"Listina!I26","v":350.89}]
[null,null,null,"Petr Povolný","ÚO Mělník",{"$f":"Listina!I45","v":411.01}]
[null,null,{"$f":"SUM(SMALL(F16:F19,{1,2,3}))","v":1108.29},"Martin Koblížek","ÚO Mělník",{"$f":"Listina!I62","v":499.78}]
[]
[]
[null,null,null,"Roman Vávra","ÚO Nymburk",{"$f":"Listina!I9","v":410.99}]
[null,null,null,"Radek Najbrt","ÚO Nymburk",{"$f":"Listina!I28","v":414.4}]
[null,null,null,"Michal Šimáček","ÚO Nymburk",{"$f":"Listina!I47","v":443.26000000000005}]
[null,null,{"$f":"SUM(SMALL(F22:F25,{1,2,3}))","v":1199.67},"Pavel Beneš","ÚO Nymburk",{"$f":"Listina!I64","v":374.28000000000003}]
[]
[]
[null,null,null,"Dušan Plodr","ÚO Beroun",{"$f":"Listina!I10","v":276.32}]
[null,null,null,"Michal Čepelák","ÚO Beroun",{"$f":"Listina!I29","v":320.03999999999996}]
[null,null,null,"Michal Chlumský","ÚO Beroun",{"$f":"Listina!I48","v":356.15}]
[null,null,{"$f":"SUM(SMALL(F28:F31,{1,2,3}))","v":952.50999999999988},"Miroslav Hrubec","ÚO Beroun",{"$f":"Listina!I65","v":402.2}]
[]
[]
[null,null,null,"Jan Jeništa","ÚO Příbram",{"$f":"Listina!I11","v":342.43}]
[null,null,null,"Jan Mora","ÚO Příbram",{"$f":"Listina!I30","v":307.57}]
[null,null,null,"Jakub Hornáček","ÚO Příbram",{"$f":"Listina!I49","v":319.73}]
[null,null,{"$f":"SUM(SMALL(F34:F37,{1,2,3}))","v":927.19},"Jiří Šídlo","ÚO Příbram",{"$f":"Listina!I66","v":299.89}]
[]
[]
[null,null,null,"Miroslav Michlovský","ÚO Kolín A",{"$f":"Listina!I4","v":334.5}]
[null,null,null,"Martin Zapadlo","ÚO Kolín A",{"$f":"Listina!I23","v":356.25}]
[null,null,{"$f":"SUM(SMALL(F39:F42,{1,2,3}))","v":998.88000000000011},"Lukáš Martínek","ÚO Kolín A",{"$f":"Listina!I42","v":308.13000000000005}]
[]
[]
[null,null,null,"Michal Strnad","ÚO Mladá Boleslav",{"$f":"Listina!I8","v":302.21999999999997}]
[null,null,null,"Jaroslav Chudoba","ÚO Mladá Boleslav",{"$f":"Listina!I61","v":366.78999999999996}]
[null,null,null,"Petr Holeček","ÚO Mladá Boleslav",{"$f":"Listina!I46","v":404.07999999999993}]
[null,null,{"$f":"SUM(SMALL(F45:F48,{1,2,3}))","v":1073.0899999999999},"Aleš Zima","ÚO Mladá Boleslav",{"$f":"Listina!I63","v":426.61}]
[]
[]
[null,null,null,"Petr Karpíšek","ÚO Kolín B",{"$f":"Listina!I13","v":332.67}]
[null,null,null,"Petr Vaněk","ÚO Kolín B",{"$f":"Listina!I32","v":417.04}]
[null,null,{"$f":"SUM(SMALL(F51:F54,{1,2,3}))","v":1150.19},"Zdeněk Hejduk","ÚO Kolín B",{"$f":"Listina!I51","v":400.48000000000008}]
[]
[]
[null,null,null,"Oldřich Tomáš Staněk","ÚO Kolín C",{"$f":"Listina!I34","v":415.01}]
[null,null,null,"Martin Drahota","ÚO Kolín C",{"$f":"Listina!I59","v":402.38}]
[null,null,{"$f":"SUM(SMALL(F56:F59,{1,2,3}))","v":1300.2},"Marcel Tanov","ÚO Kolín C",{"$f":"Listina!I68","v":482.81}]
[]
[]
[null,null,null,"David Sysel","ÚO Benešov B",{"$f":"Listina!I14","v":331.56}]
[null,null,null,"Miloš Ježek","ÚO Benešov B",{"$f":"Listina!I33","v":346.21000000000004}]
[null,null,{"$f":"SUM(SMALL(F61:F64,{1,2,3}))","v":1051.8599999999999},"Pavel Kmošek","ÚO Benešov B",{"$f":"Listina!I52","v":374.09}]
[]
[]
[null,null,null,"Jan Lahoda","ÚO Kutná Hora",{"$f":"Listina!I12","v":393.25000000000006}]
[null,null,null,"Petr Klatovský","ÚO Kutná Hora",{"$f":"Listina!I31","v":515.02}]
[null,null,null,"Miloš Vysloužil","ÚO Kutná Hora",{"$f":"Listina!I50","v":320.34000000000003}]
[null,null,{"$f":"SUM(SMALL(F66:F69,{1,2,3}))","v":1044.54},"Jan Backa","ÚO Kutná Hora",{"$f":"Listina!I67","v":330.95}]
[]
[]
[null,"1.",{"$f":"SMALL(C7:C69,1)","v":853.51},null,{"$f":"VLOOKUP(C72,C4:F70,3,FALSE)&\"\"","v":"ÚO Benešov A"}]
[null,"2.",{"$f":"SMALL(C7:C69,2)","v":927.19},null,{"$f":"VLOOKUP(C73,C5:F71,3,FALSE)&\"\"","v":"ÚO Příbram"}]
[null,"3.",{"$f":"SMALL(C7:C69,3)","v":952.50999999999988},null,{"$f":"VLOOKUP(C74,C6:F71,3,FALSE)&\"\"","v":"ÚO Beroun"}]
[null,"4.",{"$f":"SMALL(C7:C69,4)","v":998.88000000000011},null,{"$f":"VLOOKUP(C75,C7:F71,3,FALSE)&\"\"","v":"ÚO Kolín A"}]
[null,"5.",{"$f":"SMALL(C7:C69,5)","v":1044.54},null,{"$f":"VLOOKUP(C76,C7:F71,3,FALSE)&\"\"","v":"ÚO Kutná Hora"}]
[null,"6.",{"$f":"SMALL(C7:C69,6)","v":1051.8599999999999},null,{"$f":"VLOOKUP(C77,C6:F71,3,FALSE)&\"\"","v":"ÚO Benešov B"}]
[null,"7.",{"$f":"SMALL(C7:C69,7)","v":1056.68},null,{"$f":"VLOOKUP(C78,C7:F71,3,FALSE)&\"\"","v":"ÚO Kladno "}]
[null,"8.",{"$f":"SMALL(C7:C69,8)","v":1073.0899999999999},null,{"$f":"VLOOKUP(C79,C6:F71,3,FALSE)&\"\"","v":"ÚO Mladá Boleslav"}]
[null,"9.",{"$f":"SMALL(C7:C69,9)","v":1108.29},null,{"$f":"VLOOKUP(C80,C7:F71,3,FALSE)&\"\"","v":"ÚO Mělník"}]
[null,"10.",{"$f":"SMALL(C7:C69,10)","v":1150.19},null,{"$f":"VLOOKUP(C81,C7:F71,3,FALSE)&\"\"","v":"ÚO Kolín B"}]
[null,"11.",{"$f":"SMALL(C9:C69,11)","v":1300.2},null,{"$f":"VLOOKUP(C82,C7:F71,3,FALSE)&\"\"","v":"ÚO Kolín C"}]

{"sheet":"Kat A out","index":4,"n_rows":17,"n_cols":5,"rows_kept":17,"cut":false,"hidden":false,"merged":[]}
[]
[null,null,"Kategorie A out"]
[]
[1,null,"Ondřej Rosenkranz",null,{"$f":"Listina!I21","v":239.44000000000003}]
[2,null,"Marek Víšek",null,{"$f":"Listina!I56","v":243.85000000000005}]
[3,null,"Michal Brousil",null,{"$f":"Listina!I22","v":253.26}]
[4,null,"Petr Svatek",null,{"$f":"Listina!I17","v":257.20000000000005}]
[5,null,"Petr Benda",null,{"$f":"Listina!I53","v":273.10000000000002}]
[6,null,"Ondřej Fišer",null,{"$f":"Listina!I35","v":289.33000000000004}]
[7,null,"Ondřej Pavlík",null,{"$f":"Listina!I19","v":301.62}]
[8,null,"Robin Bureš",null,{"$f":"Listina!I57","v":326.70999999999992}]
[9,null,"Jan Marx",null,{"$f":"Listina!I18","v":334.23}]
[10,null,"Luboš Flídr",null,{"$f":"Listina!I69","v":336.39000000000004}]
[11,null,"Jiří Komárek",null,{"$f":"Listina!I55","v":347.15999999999997}]
[12,null,"Jiří Šilhán",null,{"$f":"Listina!I37","v":348.25000000000006}]
[13,null,"Michal Pavel",null,{"$f":"Listina!I40","v":350.81000000000006}]
[14,null,"Jakub Strika",null,{"$f":"Listina!I70","v":378.55999999999995}]

{"sheet":"Kat B out","index":5,"n_rows":6,"n_cols":5,"rows_kept":6,"cut":false,"hidden":false,"merged":[]}
[]
[null,null,"Kategorie B out"]
[]
[1,null,"Jiří Dvořák",null,{"$f":"Listina!I16","v":266.33999999999997}]
[2,null,"Petr Pecka",null,{"$f":"Listina!I72","v":305.86}]
[3,null,"Oldřich Šmatera",null,{"$f":"Listina!I38","v":323.13}]